bitfinex-derivatives/quotes_BTCF0:USTF0_20250424
["timestamp","ask_amount","ask_price","bid_price","bid_amount"]
[1745502193902,0.1298,92865.0,92864.0,0.1076498]
[1745502194097,0.0538226,92868.0,92866.0,0.1614685]
[1745502194298,0.0538226,92868.0,92867.0,0.1348]
[1745502194498,0.0538226,92868.0,92867.0,0.2424464]
[1745502195305,0.0538226,92868.0,92867.0,0.4144464]
[1745502196798,0.0558226,92868.0,92867.0,0.4144464]
[1745502197103,0.004,92868.0,92867.0,0.4144464]
[1745502197298,0.1116452,92868.0,92867.0,0.4144464]
[1745502197804,0.1116452,92868.0,92867.0,0.2414]
[1745502198400,0.004,92868.0,92867.0,0.3490464]
[1745502199211,0.1116452,92868.0,92867.0,0.3490464]
[1745502200702,0.1116452,92868.0,92867.0,0.2414]
[1745502201098,0.1800452,92868.0,92867.0,0.2414]
[1745502202003,0.1800452,92868.0,92867.0,0.172]
[1745502202700,0.6800452,92868.0,92867.0,0.172]
[1745502203208,0.1076568,92858.0,92857.0,0.0538289]
[1745502203505,0.1076591,92856.0,92855.0,0.065]
[1745502203895,0.1076684,92848.0,92847.0,0.172]
[1745502204303,0.0538313,92854.0,92850.0,0.0538328]
[1745502204606,0.0538313,92854.0,92853.0,0.1076614]
[1745502205110,0.0538313,92854.0,92853.0,0.2796614]
[1745502205405,0.6076591,92856.0,92855.0,0.1076603]
[1745502205711,0.1614825,92862.0,92861.0,0.1614754]
[1745502206100,0.0673,92865.0,92864.0,0.1076498]
[1745502206297,0.1614716,92866.0,92865.0,0.1076487]
[1745502207397,0.1614716,92866.0,92865.0,0.2796487]
[1745502207603,0.107644,92869.0,92868.0,0.1076452]
[1745502207905,0.107644,92869.0,92868.0,0.1614673]
[1745502208100,0.07428,92871.0,92870.0,0.1076429]
[1745502208307,0.1819217,92871.0,92870.0,0.1076429]
[1745502208708,0.1819217,92871.0,92870.0,0.2431429]
[1745502209210,0.1819217,92871.0,92870.0,0.4151429]
[1745502209409,0.003,92871.0,92870.0,0.4151429]
[1745502209714,0.1106417,92871.0,92870.0,0.4151429]
[1745502210014,0.003,92871.0,92870.0,0.4151429]
[1745502210203,0.1106417,92871.0,92870.0,0.4151429]
[1745502210612,0.1146417,92871.0,92870.0,0.4151429]
[1745502211242,0.1106417,92871.0,92870.0,0.4171429]
[1745502211908,0.0052,92872.0,92871.0,0.1076417]
[1745502212114,0.0052,92872.0,92871.0,0.2796417]
[1745502212115,0.1128406,92872.0,92871.0,0.2796417]
[1745502212418,0.0011,92877.0,92876.0,0.1076359]
[1745502212709,0.1,92900.0,92899.0,0.1076093]
[1745502213012,0.0052,92920.0,92906.0,0.1076012]
[1745502213212,0.0537952,92916.0,92906.0,0.1076012]
[1745502213416,0.0052,92920.0,92906.0,0.1076012]
[1745502213715,0.053799,92909.0,92905.0,0.0705]
[1745502214009,0.1076012,92906.0,92905.0,0.0705]
[1745502214210,0.1076012,92906.0,92905.0,0.2425]
[1745502214607,0.2470012,92906.0,92905.0,0.2425]
[1745502215210,0.2470012,92906.0,92905.0,0.1035352]
[1745502216215,0.1076232,92887.0,92886.0,0.3608]
[1745502217108,0.1076232,92887.0,92886.0,0.5328]
[1745502217615,0.1076232,92887.0,92886.0,0.6404243]
[1745502218215,0.1076232,92887.0,92886.0,0.172]
[1745502218518,0.1076232,92887.0,92886.0,0.2796243]
[1745502218725,0.1076232,92887.0,92886.0,0.2806243]
[1745502218919,0.1076232,92887.0,92886.0,0.2816243]
[1745502219315,0.1076232,92887.0,92886.0,0.174]
[1745502219824,0.1076232,92887.0,92886.0,0.173]
[1745502220021,0.1076232,92887.0,92886.0,0.174]
[1745502220222,0.1614325,92889.0,92888.0,0.107622]
[1745502220819,0.0537971,92913.0,92888.0,0.107622]
[1745502220820,0.3687687,92931.0,92888.0,0.357656]
[1745502221017,0.107591,92916.0,92915.0,0.0537947]
[1745502221214,0.1075896,92916.0,92915.0,0.172]
[1745502222217,0.1076,92907.0,92906.0,0.1076011]
[1745502223426,0.1076,92907.0,92906.0,0.1788011]
[1745502223628,0.1742,92907.0,92906.0,0.1788011]
[1745502223825,0.6742,92907.0,92906.0,0.1788011]
[1745502224328,0.6742,92907.0,92906.0,0.3508011]
[1745502225028,0.6762,92907.0,92906.0,0.3508011]
[1745502225918,0.5686,92907.0,92906.0,0.3508011]
[1745502226119,0.002,92907.0,92906.0,0.3508011]
[1745502226319,0.002,92907.0,92906.0,0.7116011]
[1745502226520,0.112785,92920.0,92919.0,0.1075861]
[1745502227119,0.112785,92920.0,92919.0,0.172]
[1745502227320,0.473585,92920.0,92919.0,0.172]
[1745502227724,0.541185,92920.0,92919.0,0.2795861]
[1745502227915,0.541185,92920.0,92919.0,0.172]
[1745502228121,0.1075884,92917.0,92916.0,0.1075891]
[1745502228625,0.1613907,92914.0,92911.0,0.0537973]
[1745502228929,0.1075942,92912.0,92911.0,0.0537973]
[1745502229133,0.1075942,92912.0,92911.0,0.2257973]
[1745502229629,0.7450942,92912.0,92911.0,0.2257973]
[1745502229826,0.6075942,92912.0,92911.0,0.2257973]
[1745502230023,0.6085942,92912.0,92911.0,0.2257973]
[1745502231119,0.001,92912.0,92911.0,0.2257973]
[1745502231323,0.003,92912.0,92911.0,0.2257973]
[1745502232027,0.1105942,92912.0,92911.0,0.2257973]
[1745502232625,0.1105942,92912.0,92911.0,0.2977973]
[1745502233023,0.2454942,92912.0,92911.0,0.172]
[1745502233225,0.2454942,92912.0,92911.0,0.2795954]
[1745502234027,0.7454942,92912.0,92911.0,0.2795954]
[1745502235028,1.1062942,92912.0,92911.0,0.2795954]
[1745502236629,0.7454942,92912.0,92911.0,0.6403954]
[1745502236931,0.6105942,92912.0,92911.0,0.2795954]
[1745502237925,0.7517942,92912.0,92911.0,0.2795954]
[1745502239032,0.6105942,92912.0,92911.0,0.2795954]
[1745502239623,0.503,92912.0,92911.0,0.2795954]
[1745502239824,0.6105942,92912.0,92911.0,0.2795954]
[1745502240634,0.503,92912.0,92911.0,0.2795954]
[1745502241734,0.003,92912.0,92911.0,0.2795954]
[1745502244727,0.003,92912.0,92911.0,0.3472954]
[1745502245126,0.1105942,92912.0,92911.0,0.3472954]
[1745502245629,0.1105942,92912.0,92911.0,0.172]
[1745502246136,0.1075977,92910.0,92909.0,0.1075975]
[1745502246529,0.1414,92910.0,92909.0,0.1075975]
[1745502246731,0.2489965,92910.0,92909.0,0.1762975]
[1745502246935,0.1075965,92910.0,92909.0,0.1762975]
[1745502247135,0.1075965,92910.0,92909.0,0.3482975]
[1745502247338,0.1095965,92910.0,92909.0,0.3482975]
[1745502247941,0.002,92910.0,92909.0,0.3482975]
[1745502248334,0.1095965,92910.0,92909.0,0.3482975]
[1745502249441,0.2545965,92910.0,92909.0,0.2795977]
[1745502249736,0.3226965,92910.0,92909.0,0.2795977]
[1745502250332,0.3226965,92910.0,92909.0,0.3524977]
[1745502251541,0.3957365,92910.0,92909.0,0.2449]
[1745502251735,0.3957365,92910.0,92909.0,0.3524977]
[1745502252243,0.8957365,92910.0,92909.0,0.3524977]
[1745502255445,0.1076093,92899.0,92887.0,0.3608]
[1745502255636,0.1076209,92889.0,92880.0,0.21686707]
[1745502255839,0.1076209,92889.0,92882.0,0.1076289]
[1745502255840,0.1806609,92889.0,92882.0,0.1076289]
[1745502256044,0.1806609,92889.0,92881.0,0.0697]
[1745502256251,0.2883169,92889.0,92881.0,0.0697]
[1745502256545,0.6491169,92889.0,92880.0,0.21686707]
[1745502256737,0.1076301,92881.0,92880.0,0.21686707]
[1745502257040,0.4684301,92881.0,92880.0,0.21686707]
[1745502258646,0.9684301,92881.0,92880.0,0.21886707]
[1745502258845,0.1076348,92877.0,92876.0,0.0010767]
[1745502259049,0.1076417,92871.0,92870.0,0.2704267]
[1745502259339,0.1076475,92866.0,92859.0,0.0538276]
[1745502259542,0.1076475,92866.0,92862.0,0.1076517]
[1745502259731,0.107651,92863.0,92862.0,0.1076517]
[1745502259931,0.1413,92865.0,92833.0,0.0538426]
[1745502260143,0.107658,92857.0,92856.0,0.1789591]
[1745502260338,0.180738,92857.0,92856.0,0.1789591]
[1745502260944,0.322038,92857.0,92856.0,0.1789591]
[1745502261444,0.322038,92857.0,92856.0,0.3509591]
[1745502261655,0.822038,92857.0,92856.0,0.3539591]
[1745502261939,0.822038,92857.0,92856.0,0.3569591]
[1745502262141,0.822038,92857.0,92856.0,0.0773]
[1745502262348,0.822038,92857.0,92849.0,0.1076667]
[1745502262349,0.0538335,92850.0,92849.0,0.1076667]
[1745502263033,0.1982335,92850.0,92849.0,0.1076667]
[1745502263237,0.1982335,92850.0,92848.0,0.0681]
[1745502263238,0.1076672,92849.0,92848.0,0.0681]
[1745502263432,0.1076672,92849.0,92848.0,0.1757684]
[1745502263643,0.2520672,92849.0,92848.0,0.1757684]
[1745502264245,0.2520672,92849.0,92848.0,0.3477684]
[1745502264843,0.7520672,92849.0,92848.0,0.3517684]
[1745502265146,0.7520672,92849.0,92848.0,0.1797684]
[1745502265445,0.7520672,92849.0,92848.0,0.1827684]
[1745502266252,0.5,92849.0,92848.0,0.3547684]
[1745502266748,0.6076672,92849.0,92848.0,0.3547684]
[1745502266940,0.6076672,92849.0,92848.0,0.4278684]
[1745502267142,0.1076672,92849.0,92848.0,0.4278684]
[1745502267741,0.0538325,92851.0,92850.0,0.1076661]
[1745502268045,0.0538325,92851.0,92850.0,0.2796661]
[1745502268549,0.2153226,92855.0,92854.0,0.1076614]
[1745502269238,0.0538303,92855.0,92854.0,0.4226614]
[1745502269444,0.07404,92856.0,92855.0,0.1076603]
[1745502269641,0.053826,92863.0,92861.0,0.1076526]
[1745502269841,0.053826,92863.0,92862.0,0.0719]
[1745502270148,0.195166,92863.0,92862.0,0.0719]
[1745502271240,0.195166,92863.0,92862.0,0.2439]
[1745502271447,0.695166,92863.0,92862.0,0.2439]
[1745502271642,0.695166,92863.0,92862.0,0.172]
[1745502271842,0.695166,92863.0,92856.0,0.0711]
[1745502271843,0.1076684,92848.0,92847.0,0.4331]
[1745502272045,0.1076696,92847.0,92846.0,0.00107705]
[1745502272245,0.1745696,92847.0,92846.0,0.00107705]
[1745502272547,0.1745696,92847.0,92846.0,0.10874775]
[1745502272743,0.1745696,92847.0,92846.0,0.00107705]
[1745502272943,0.1745696,92847.0,92846.0,0.10874775]
[1745502273149,0.6745696,92847.0,92846.0,0.17307705]
[1745502273543,0.6745696,92847.0,92846.0,0.35514775]
[1745502274137,0.6745696,92847.0,92846.0,0.35914775]
[1745502274138,0.6076696,92847.0,92846.0,0.35914775]
[1745502274347,0.5,92847.0,92846.0,0.71994775]
[1745502274653,0.5,92847.0,92846.0,0.72294775]
[1745502274845,0.5,92847.0,92846.0,0.79534775]
[1745502275452,0.1076669,92850.0,92849.0,0.1076672]
[1745502276255,0.07408,92859.0,92858.0,0.1076568]
[1745502276448,0.1817356,92859.0,92858.0,0.1076568]
[1745502276845,0.1817356,92859.0,92858.0,0.2461568]
[1745502277047,0.07408,92859.0,92858.0,0.4181568]
[1745502277353,0.1817356,92859.0,92858.0,0.4181568]
[1745502277949,0.1817356,92859.0,92858.0,0.4191568]
[1745502278958,0.1817356,92859.0,92858.0,0.3125]
[1745502279253,0.1817356,92859.0,92858.0,0.4201568]
[1745502279857,0.6817356,92859.0,92858.0,0.4201568]
[1745502281147,0.1817356,92859.0,92858.0,0.4201568]
[1745502282253,0.07408,92859.0,92858.0,0.4201568]
[1745502282452,0.1817356,92859.0,92858.0,0.4201568]
[1745502284355,0.07408,92878.0,92875.0,0.053818]
[1745502284555,0.21747847,92912.0,92890.0,0.1076197]
[1745502284753,0.07408,92903.0,92890.0,0.4684197]
[1745502284961,0.0692,92909.0,92890.0,0.58672114]
[1745502285153,0.0549001,92907.0,92890.0,0.75872114]
[1745502285454,0.0538024,92903.0,92890.0,0.75872114]
[1745502285659,0.24382843,92901.0,92890.0,0.75872114]
[1745502286044,0.11225874,92891.0,92890.0,0.75872114]
[1745502286654,0.11225874,92891.0,92890.0,0.7480717]
[1745502286853,0.11225874,92891.0,92890.0,0.6404197]
[1745502287153,0.11225874,92891.0,92890.0,0.6444197]
[1745502287755,0.21687734,92891.0,92890.0,0.6444197]
[1745502287949,0.21687734,92891.0,92890.0,0.6484197]
[1745502288256,0.21687734,92891.0,92890.0,0.6444197]
[1745502288456,0.10925874,92891.0,92890.0,0.6474197]
[1745502289154,0.21687734,92891.0,92890.0,0.6474197]
[1745502289456,0.10925874,92891.0,92890.0,0.6474197]
[1745502289650,0.161415,92899.0,92893.0,0.053808]
[1745502289959,0.0538046,92899.0,92898.0,0.4684104]
[1745502290658,0.10925874,92900.0,92899.0,0.1076093]
[1745502290859,0.10925874,92900.0,92899.0,0.2503093]
[1745502291257,0.21686684,92900.0,92899.0,0.4223093]
[1745502291451,0.21686684,92900.0,92899.0,0.2455]
[1745502291756,0.21686684,92900.0,92899.0,0.3531093]
[1745502292063,0.21686684,92900.0,92899.0,0.3541093]
[1745502292250,0.21686684,92900.0,92899.0,0.4233093]
[1745502292960,0.1076081,92900.0,92899.0,0.4243093]
[1745502293958,0.1076081,92900.0,92899.0,0.2475]
[1745502294160,0.1076081,92900.0,92899.0,0.3193]
[1745502295152,0.1076081,92900.0,92899.0,0.4269093]
[1745502297160,0.1076081,92900.0,92899.0,0.3193]
[1745502297464,0.1076081,92900.0,92899.0,0.2475]
[1745502297955,0.2533081,92900.0,92899.0,0.174]
[1745502298261,0.2533081,92900.0,92899.0,0.002]
[1745502298661,0.3273481,92900.0,92899.0,0.002]
[1745502298863,0.4349921,92900.0,92899.0,0.002]
[1745502299059,0.8273481,92900.0,92899.0,0.002]
[1745502299459,0.1076174,92892.0,92891.0,0.1774178]
[1745502299664,0.1076174,92892.0,92891.0,0.0698]
[1745502299859,0.1076174,92892.0,92891.0,0.1774186]
[1745502300164,0.1076174,92892.0,92891.0,0.3494186]
[1745502300365,0.1806118,92897.0,92893.0,0.0538081]
[1745502300560,0.1076118,92897.0,92896.0,0.1076128]
[1745502300758,0.1807318,92897.0,92896.0,0.1076128]
[1745502301057,0.073,92899.0,92896.0,0.1076128]
[1745502301253,0.0011,92907.0,92898.0,0.3608]
[1745502301561,0.0011,92907.0,92906.0,0.4684012]
[1745502301956,0.1087,92907.0,92906.0,0.6127012]
[1745502302155,0.1087,92907.0,92906.0,0.7847012]
[1745502302364,0.0011,92907.0,92906.0,0.7847012]
[1745502302960,0.1087,92907.0,92906.0,0.7847012]
[1745502304064,0.1087,92907.0,92906.0,0.7857012]
[1745502304763,0.0011,92907.0,92906.0,0.7857012]
[1745502305762,0.07312,92914.0,92908.0,0.0537992]
[1745502305957,0.07312,92914.0,92913.0,0.4683931]
[1745502306362,0.112785,92920.0,92919.0,0.1075861]
[1745502306562,0.0052,92920.0,92919.0,0.1075861]
[1745502306761,0.0052,92920.0,92919.0,0.2519861]
[1745502306961,0.112785,92920.0,92919.0,0.2519861]
[1745502307163,0.112785,92920.0,92919.0,0.4239861]
[1745502307866,0.0052,92920.0,92919.0,0.4239861]
[1745502308170,0.07312,92946.0,92933.0,0.1075699]
[1745502308361,0.1268978,92946.0,92933.0,0.8291699]
[1745502308669,0.08197382,92939.0,92936.0,0.1075664]
[1745502308859,0.08197382,92939.0,92936.0,0.11577613]
[1745502309261,0.08197382,92939.0,92936.0,0.28777613]
[1745502310169,0.0041,92937.0,92936.0,0.28777613]
[1745502310868,0.0061,92937.0,92936.0,0.28777613]
[1745502311555,0.18237874,92946.0,92936.0,0.28777613]
[1745502311556,0.10925874,92946.0,92945.0,0.107556]
[1745502311758,0.10925874,92946.0,92945.0,0.468356]
[1745502312159,0.10925874,92946.0,92945.0,0.640356]
[1745502312360,0.10925874,92946.0,92945.0,0.783256]
[1745502312765,0.11425874,92946.0,92945.0,0.783256]
[1745502313262,0.1125549,92946.0,92945.0,0.172]
[1745502313459,0.1075688,92934.0,92917.0,0.0537942]
[1745502313659,0.1075688,92934.0,92928.0,0.1075748]
[1745502313963,0.1075688,92934.0,92927.0,0.0537879]
[1745502314161,0.1075688,92934.0,92930.0,0.1075727]
[1745502314366,0.1075688,92934.0,92927.0,0.0537883]
[1745502314560,0.1075688,92934.0,92931.0,0.1075719]
[1745502314761,0.1085688,92934.0,92931.0,0.1075719]
[1745502314961,0.6095688,92934.0,92926.0,0.0693]
[1745502315167,0.6095688,92934.0,92900.0,0.5918437]
[1745502315168,0.859604,92934.0,92908.0,0.3608]
[1745502315364,0.0537919,92921.0,92908.0,0.3608]
[1745502315571,0.1075977,92909.0,92908.0,0.3608]
[1745502315971,0.1076,92907.0,92897.0,0.0693]
[1745502316286,0.1076,92907.0,92900.0,0.1076076]
[1745502316786,0.3268,92907.0,92897.0,0.0693]
[1745502317186,0.3268,92907.0,92885.0,0.0538123]
[1745502317187,0.576836,92907.0,92885.0,0.0538123]
[1745502317387,0.1076162,92893.0,92888.0,0.0693]
[1745502317587,0.1076162,92893.0,92892.0,0.4684174]
[1745502318291,0.2505162,92893.0,92892.0,0.4684174]
[1745502318492,0.2505162,92893.0,92892.0,0.4714174]
[1745502319398,0.14692,92893.0,92892.0,0.4714174]
[1745502319691,0.1807362,92893.0,92892.0,0.4744174]
[1745502320093,0.1807362,92893.0,92892.0,0.6434174]
[1745502320290,0.1807362,92893.0,92892.0,0.6464174]
[1745502321793,0.0537962,92914.0,92892.0,0.5388]
[1745502321987,0.1614188,92901.0,92900.0,0.215211]
[1745502322396,0.2152245,92901.0,92900.0,0.1076052]
[1745502322894,0.1076162,92893.0,92892.0,0.175]
[1745502323097,0.1076162,92893.0,92892.0,0.003]
[1745502323291,0.2152682,92893.0,92892.0,0.003]
[1745502323491,0.1076174,92892.0,92891.0,0.107618]
[1745502323693,0.2552374,92892.0,92891.0,0.107618]
[1745502324197,0.2552374,92892.0,92891.0,0.279618]
[1745502324799,0.2552374,92892.0,92891.0,0.282618]
[1745502324998,0.2552374,92892.0,92891.0,0.175]
[1745502325195,0.2552374,92892.0,92891.0,0.003]
[1745502325802,0.2552374,92892.0,92891.0,0.007]
[1745502326793,0.14762,92892.0,92891.0,0.1146186]
[1745502326995,0.7552374,92892.0,92891.0,0.1146186]
[1745502328403,0.7552374,92892.0,92891.0,0.1904186]
[1745502329095,0.7552374,92892.0,92891.0,0.1146186]
[1745502330310,0.6821174,92892.0,92891.0,0.1146186]
[1745502330504,0.6807774,92892.0,92891.0,0.1881186]
[1745502331905,0.6807774,92892.0,92891.0,0.1146186]
[1745502332107,0.6807774,92892.0,92891.0,0.3627186]
[1745502332595,0.1807774,92892.0,92891.0,0.3627186]
[1745502332793,0.1807774,92892.0,92891.0,0.2866186]
[1745502333100,0.2505774,92892.0,92891.0,0.007]
[1745502333508,0.3271774,92892.0,92891.0,0.1146186]
[1745502333703,0.3271774,92892.0,92891.0,0.007]
[1745502333912,0.1076348,92877.0,92876.0,0.1087126]
[1745502334100,0.1807948,92877.0,92876.0,0.1087126]
[1745502334799,0.1807948,92877.0,92876.0,0.2550126]
[1745502335006,0.1807948,92877.0,92876.0,0.1859126]
[1745502335195,0.1807948,92877.0,92876.0,0.3579126]
[1745502335405,0.1807948,92877.0,92876.0,0.3639126]
[1745502335710,0.5415948,92877.0,92876.0,0.1860767]
[1745502336003,0.1076406,92872.0,92863.0,0.3608]
[1745502336409,0.1076498,92864.0,92863.0,0.3608]
[1745502337404,0.2530498,92864.0,92863.0,0.3608]
[1745502337602,0.2540498,92864.0,92863.0,0.3608]
[1745502338004,0.1076568,92858.0,92857.0,0.0759]
[1745502338200,0.1076649,92851.0,92850.0,0.053833]
[1745502338501,0.0538295,92856.0,92848.0,0.1076681]
[1745502338703,0.1076696,92847.0,92846.0,0.00107705]
[1745502339107,0.1297336,92849.0,92846.0,0.00107705]
[1745502339402,0.1297336,92849.0,92848.0,0.1076684]
[1745502339702,0.001,92851.0,92850.0,0.1076661]
[1745502340004,0.1818249,92851.0,92850.0,0.1076661]
[1745502340310,0.1818249,92851.0,92850.0,0.1816661]
[1745502340802,0.1808249,92851.0,92850.0,0.1816661]
[1745502341203,0.1808249,92851.0,92850.0,0.3536661]
[1745502341506,0.001,92851.0,92850.0,0.3536661]
[1745502341711,0.003,92851.0,92850.0,0.3536661]
[1745502342211,0.1106649,92851.0,92850.0,0.3536661]
[1745502342518,0.1106649,92851.0,92850.0,0.246]
[1745502342805,0.2581649,92851.0,92850.0,0.246]
[1745502344206,0.7581649,92851.0,92850.0,0.074]
[1745502345100,0.7581649,92851.0,92842.0,0.0538376]
[1745502345101,0.1076788,92839.0,92838.0,0.3608]
[1745502346198,0.1076788,92839.0,92838.0,0.46848]
[1745502346604,0.0538378,92842.0,92841.0,0.1076765]
[1745502346605,0.2153537,92842.0,92841.0,0.1076765]
[1745502347100,0.2153537,92842.0,92841.0,0.2796765]
[1745502348014,0.2153537,92842.0,92841.0,0.172]
[1745502348210,0.2153537,92842.0,92841.0,0.1136765]
[1745502349015,0.7153537,92842.0,92841.0,0.1136765]
[1745502349207,0.7153537,92842.0,92841.0,0.178]
[1745502349605,0.7153537,92842.0,92841.0,0.2856765]
[1745502350206,0.5,92842.0,92841.0,0.1136765]
[1745502350411,0.1076754,92842.0,92841.0,0.1136765]
[1745502350805,0.1076754,92842.0,92841.0,0.1848765]
[1745502351309,0.1076754,92842.0,92841.0,0.2492]
[1745502351511,0.2497754,92842.0,92841.0,0.2492]
[1745502351912,0.2497754,92842.0,92841.0,0.3568765]
[1745502352118,0.7497754,92842.0,92841.0,0.1848765]
[1745502352306,0.7497754,92842.0,92841.0,0.006]
[1745502352505,0.1076858,92833.0,92832.0,0.172]
[1745502352708,0.1808858,92833.0,92832.0,0.172]
[1745502353208,0.1808858,92833.0,92823.0,0.00538657]
[1745502353209,0.1076904,92829.0,92823.0,0.00538657]
[1745502353510,0.1076904,92829.0,92824.0,0.0735]
[1745502354013,0.1076951,92825.0,92824.0,0.0735]
[1745502354602,0.1076962,92824.0,92823.0,0.00538657]
[1745502354809,0.1077044,92817.0,92816.0,0.00107739]
[1745502355003,0.1809044,92817.0,92816.0,0.00107739]
[1745502355613,0.3325044,92817.0,92816.0,0.00107739]
[1745502355810,0.107716,92809.0,92808.0,0.1615674]
[1745502357219,0.608716,92809.0,92808.0,0.4140674]
[1745502357526,0.608716,92809.0,92808.0,0.4180674]
[1745502357721,0.681416,92809.0,92808.0,0.4180674]
[1745502357920,0.681416,92809.0,92808.0,0.3103572]
[1745502358120,1.042216,92809.0,92808.0,0.009]
[1745502359115,1.113216,92809.0,92808.0,0.009]
[1745502359313,1.220964,92809.0,92808.0,0.009]
[1745502359517,1.220964,92809.0,92808.0,0.01]
[1745502361213,1.220964,92809.0,92808.0,0.006]
[1745502362423,1.186656,92809.0,92808.0,0.006]
[1745502362613,1.185656,92809.0,92808.0,0.003]
[1745502363123,1.185656,92809.0,92808.0,0.175]
[1745502363618,1.293404,92809.0,92808.0,0.175]
[1745502364119,1.293404,92809.0,92808.0,0.003]
[1745502366225,1.293404,92809.0,92808.0,0.175]
[1745502367018,1.185656,92809.0,92808.0,0.175]
[1745502367224,1.293404,92809.0,92808.0,0.003]
[1745502368216,1.293404,92809.0,92808.0,0.175]
[1745502368418,1.041956,92809.0,92808.0,0.2827148]
[1745502368725,1.041956,92809.0,92808.0,0.175]
[1745502369422,0.43424,92809.0,92808.0,0.2827148]
[1745502369732,0.5419536,92809.0,92808.0,0.2827148]
[1745502370626,0.5419536,92809.0,92808.0,0.4300148]
[1745502371019,0.0538434,92833.0,92830.0,0.0538433]
[1745502371223,0.181127,92832.0,92831.0,0.1473]
[1745502371525,0.3608,92851.0,92833.0,0.0538426]
[1745502371722,0.07344,92846.0,92840.0,0.3608]
[1745502371927,0.1076754,92842.0,92841.0,0.147]
[1745502373016,0.6076754,92842.0,92841.0,0.147]
[1745502373216,0.507,92842.0,92841.0,0.6776765]
[1745502373420,0.513,92842.0,92841.0,0.6776765]
[1745502373624,0.513,92842.0,92841.0,0.7853885]
[1745502373816,0.0011,92847.0,92846.0,0.1076707]
[1745502374012,0.07344,92868.0,92864.0,0.1076498]
[1745502374217,0.1076487,92865.0,92864.0,0.8292498]
[1745502375220,0.1076487,92865.0,92864.0,1.0012498]
[1745502375420,0.1076487,92865.0,92864.0,0.8936]
[1745502376323,0.1076487,92865.0,92864.0,1.0012498]
[1745502376622,0.1096487,92865.0,92864.0,0.8936]
[1745502376826,0.1096487,92865.0,92864.0,0.172]
[1745502377022,0.6096487,92865.0,92864.0,0.172]
[1745502377226,0.1076568,92858.0,92857.0,0.0709]
[1745502377425,0.1076568,92858.0,92857.0,0.1471]
[1745502378029,0.1795568,92858.0,92857.0,0.1471]
[1745502378628,0.6076568,92858.0,92857.0,0.1471]
[1745502379225,0.6076568,92858.0,92857.0,0.3201]
[1745502379523,0.5,92858.0,92857.0,0.427758]
[1745502379927,0.1076568,92858.0,92857.0,0.427758]
[1745502380128,0.1076568,92858.0,92857.0,0.3201]
[1745502380441,0.1076568,92858.0,92857.0,0.2492]
[1745502380442,0.1810968,92858.0,92857.0,0.2492]
[1745502380731,0.1810968,92858.0,92857.0,0.3232]
[1745502381627,0.1810968,92858.0,92857.0,0.3222]
[1745502381832,0.2552968,92858.0,92857.0,0.3222]
[1745502382018,0.6810968,92858.0,92857.0,0.3222]
[1745502382223,0.6820968,92858.0,92857.0,0.3222]
[1745502382525,0.6850968,92858.0,92857.0,0.3222]
[1745502382724,0.6870968,92858.0,92857.0,0.3222]
[1745502382921,0.6870968,92858.0,92857.0,0.172]
[1745502383121,0.7612968,92858.0,92857.0,0.172]
[1745502383316,0.7592968,92858.0,92857.0,0.172]
[1745502383519,0.6850968,92858.0,92857.0,0.3244]
[1745502383729,0.6820968,92858.0,92857.0,0.3244]
[1745502383923,0.6830968,92858.0,92857.0,0.3244]
[1745502384919,0.6850968,92858.0,92857.0,0.3244]
[1745502385730,0.6870968,92858.0,92857.0,0.3244]
[1745502386137,0.6860968,92858.0,92857.0,0.3244]
[1745502386331,0.6830968,92858.0,92857.0,0.2476]
[1745502386528,0.6840968,92858.0,92857.0,0.2476]
[1745502387228,0.6820968,92858.0,92857.0,0.0756]
[1745502387538,0.6840968,92858.0,92857.0,0.0756]
[1745502387925,0.1076661,92850.0,92849.0,0.0744]
[1745502388124,0.1076661,92850.0,92849.0,0.072]
[1745502388828,0.1808661,92850.0,92849.0,0.072]
[1745502389032,0.6808661,92850.0,92849.0,0.072]
[1745502389327,0.6808661,92850.0,92849.0,0.244]
[1745502389533,0.6828661,92850.0,92849.0,0.244]
[1745502390030,0.6848661,92850.0,92849.0,0.172]
[1745502390229,0.1076696,92847.0,92846.0,0.0744]
[1745502390429,0.1076696,92847.0,92846.0,0.1820707]
[1745502390635,0.1076696,92847.0,92846.0,0.0744]
[1745502391134,0.1811084,92849.0,92848.0,0.1076684]
[1745502391325,0.07344,92849.0,92848.0,0.1076684]
[1745502391529,0.07344,92849.0,92848.0,0.2580684]
[1745502392030,0.1811072,92849.0,92848.0,0.2580684]
[1745502392231,0.1811072,92849.0,92848.0,0.4300684]
[1745502392428,0.1811072,92849.0,92848.0,0.4310684]
[1745502392736,0.1811072,92849.0,92848.0,0.4320684]
[1745502393235,0.1811072,92849.0,92848.0,0.4310684]
[1745502393434,0.1821072,92849.0,92848.0,0.4310684]
[1745502393638,0.07528,92849.0,92848.0,0.4310684]
[1745502394028,0.07528,92849.0,92848.0,0.4300684]
[1745502394227,0.07528,92849.0,92848.0,0.4320684]
[1745502394536,0.1829472,92849.0,92848.0,0.4320684]
[1745502394930,0.1819472,92849.0,92848.0,0.4340684]
[1745502395538,0.1819472,92849.0,92848.0,0.4360684]
[1745502395838,0.1819472,92849.0,92848.0,0.4350684]
[1745502396138,0.1819472,92849.0,92848.0,0.4340684]
[1745502397132,0.07428,92849.0,92848.0,0.4310684]
[1745502397426,0.1819472,92849.0,92848.0,0.4340684]
[1745502397939,0.07428,92849.0,92848.0,0.4340684]
[1745502398439,0.07428,92849.0,92848.0,0.4350684]
[1745502398638,0.07428,92849.0,92848.0,0.4320684]
[1745502399040,0.07428,92849.0,92848.0,0.4340684]
[1745502399247,0.1819472,92849.0,92848.0,0.4340684]
[1745502400242,0.1819472,92849.0,92848.0,0.4350684]
[1745502400638,0.1076672,92849.0,92848.0,0.177]
[1745502400840,0.1819472,92849.0,92848.0,0.177]
[1745502401046,0.1819472,92849.0,92848.0,0.2836684]
[1745502401239,0.4075472,92849.0,92848.0,0.1116684]
[1745502401439,0.4075472,92849.0,92848.0,0.002]
[1745502401639,0.9075472,92849.0,92848.0,0.003]
[1745502401845,0.9075472,92849.0,92848.0,0.004]
[1745502402043,0.9075472,92849.0,92848.0,0.003]
[1745502402248,0.9075472,92849.0,92848.0,0.177]
[1745502402746,0.9075472,92849.0,92848.0,0.2846684]
[1745502402949,0.8295472,92849.0,92848.0,0.2846684]
[1745502403141,0.8295472,92849.0,92848.0,0.177]
[1745502403339,0.8295472,92849.0,92848.0,0.2846684]
[1745502404443,0.8295472,92849.0,92848.0,0.177]